bitfinex/quotes_ETHUSD_20240828
["timestamp","ask_amount","ask_price","bid_price","bid_amount"]
[1724815845534,0.42327287,2475.2,2474.3,2.3294]
[1724815845819,0.42327287,2475.2,2474.4,0.46226444]
[1724815846632,0.42327287,2475.2,2474.5,2.475]
[1724815848911,0.42327287,2475.2,2474.6,22.26219661]
[1724815849256,11.71,2477.2,2474.6,22.26219661]
[1724815849257,2.3599,2476.0,2474.7,2.435]
[1724815849440,0.4232339,2475.5,2475.0,2.435]
[1724815849619,0.23599,2475.9,2475.0,2.90782444]
[1724815850038,0.42324725,2475.5,2475.0,2.90782444]
[1724815850245,0.33696575,2475.9,2475.0,2.90782444]
[1724815850414,0.42324242,2475.8,2475.0,2.90782444]
[1724815850614,0.42324242,2475.8,2475.0,2.435]
[1724815856960,2.48948008,2475.7,2474.9,2.29324439]
[1724815858825,0.10099173,2475.6,2474.9,2.29324439]
[1724815859022,2.3885,2475.7,2474.9,2.29324439]
[1724815859223,0.28117424,2475.6,2474.9,2.29324439]
[1724815859860,0.42324242,2475.8,2475.0,2.3623]
[1724815862078,2.4083,2475.7,2475.0,2.3623]
[1724815865044,0.42324242,2475.8,2475.0,2.3623]
[1724815865843,0.42324242,2475.8,2475.0,19.82719661]
[1724815866043,0.42324242,2475.8,2475.2,2.4591]
[1724815867458,2.4054,2476.5,2475.2,2.4591]
[1724815867666,0.42321752,2476.2,2475.5,2.2639]
[1724815867880,0.42321752,2476.2,2475.6,0.45571444]
[1724815868992,0.42321752,2476.2,2475.7,2.4449]
[1724815869291,2.4654,2477.8,2475.7,2.4449]
[1724815869601,2.4654,2477.8,2476.3,4.56854439]
[1724815869602,0.42318569,2476.5,2476.3,4.56854439]
[1724815869796,0.10093938,2477.2,2476.3,2.2753]
[1724815869995,0.10093938,2477.2,2476.2,2.29324439]
[1724815869996,0.42318441,2476.5,2476.2,2.29324439]
[1724815870284,2.362,2476.4,2475.9,14.71324439]
[1724815870589,0.2362,2476.3,2475.9,14.71324439]
[1724815871650,0.33715731,2476.3,2475.6,2.29324439]
[1724815873662,2.3597,2476.2,2475.6,2.29324439]
[1724815874247,2.46066874,2476.2,2475.6,2.16558264]
[1724815874498,0.25959,2476.1,2475.6,2.16558264]
[1724815874857,0.25959,2476.1,2475.6,4.56428264]
[1724815875683,0.25959,2476.1,2475.6,2.3987]
[1724815876584,0.25959,2476.1,2475.4,16.84488264]
[1724815880698,0.25959,2476.1,2475.4,14.58558264]
[1724815881703,0.25959,2476.1,2475.4,2.16558264]
[1724815882011,2.2915,2476.0,2475.4,2.16558264]
[1724815882182,0.255109,2475.9,2475.4,2.16558264]
[1724815882382,2.2915,2476.0,2475.4,2.16558264]
[1724815883921,0.10096889,2475.9,2475.4,2.16558264]
[1724815884076,2.4136,2475.8,2475.4,2.16558264]
[1724815884277,2.4136,2475.8,2475.0,12.42]
[1724815884278,2.4136,2475.6,2475.0,14.58558264]
[1724815884474,0.25145892,2475.5,2475.0,14.58558264]
[1724815885897,0.42328064,2475.4,2475.0,14.58558264]
[1724815886616,2.56728946,2475.3,2474.7,2.16558264]
[1724815886924,0.29905701,2475.2,2474.7,2.16558264]
[1724815889678,2.4663,2475.0,2474.3,2.16558264]
[1724815889994,3.11732946,2474.9,2474.3,2.16558264]
[1724815890190,2.56732946,2474.9,2474.3,2.16558264]
[1724815890393,0.80673295,2474.8,2474.3,2.16558264]
[1724815890593,0.10102937,2474.7,2474.1,12.42]
[1724815891214,2.4663,2474.9,2474.1,12.42]
[1724815891921,0.63707435,2475.4,2474.1,12.42]
[1724815891922,0.10102195,2474.8,2474.1,12.42]
[1724815892217,2.4663,2474.7,2474.1,12.42]
[1724815892414,0.30163,2474.6,2474.1,12.42]
[1724815896415,0.30163,2474.6,2474.0,2.16558264]
[1724815898287,2.4663,2474.7,2474.0,2.16558264]
[1724815900212,2.425,2475.1,2474.0,2.16558264]
[1724815900411,2.425,2475.1,2474.1,2.4725]
[1724815901311,0.42323804,2475.0,2474.1,2.4725]
[1724815901621,0.42323804,2475.0,2474.2,0.46380826]
[1724815901799,0.42323804,2475.0,2474.3,2.4725]
[1724815904372,0.42323804,2475.0,2474.1,2.4581]
[1724815904866,2.4672,2474.9,2474.1,2.4581]
[1724815906143,2.4672,2474.9,2474.0,2.16558264]
[1724815909713,2.4672,2474.9,2474.1,2.4655]
[1724815909888,2.4672,2474.9,2474.2,0.46310826]
[1724815910877,0.42323804,2475.0,2474.3,2.4479]
[1724815911893,0.42323804,2475.0,2474.1,2.4335]
[1724815921497,2.3655,2475.1,2474.1,2.4335]
[1724815921824,2.3655,2475.1,2474.2,0.45990826]
[1724815922925,2.3655,2475.1,2474.0,2.16558264]
[1724815924203,2.3504,2474.9,2473.6,34.41277925]
[1724815924527,2.3504,2474.7,2473.6,2.16558264]
[1724815924817,2.3504,2474.5,2473.6,2.16558264]
[1724815925179,2.3504,2474.3,2473.1,4.78696264]
[1724815925519,2.3504,2474.3,2473.1,2.62138]
[1724815927416,2.3504,2474.3,2473.3,2.4118]
[1724815928541,2.3504,2474.3,2473.1,0.29438]
[1724815928718,2.58874,2474.2,2473.1,0.29438]
[1724815928890,2.3537,2474.2,2473.1,0.29438]
[1724815929091,2.3537,2474.2,2473.2,2.16558264]
[1724815930091,0.10105028,2474.1,2473.2,2.16558264]
[1724815930423,2.2727,2474.0,2473.2,2.16558264]
[1724815930725,2.4118,2473.8,2473.2,2.16558264]
[1724815936189,2.4118,2473.8,2473.2,4.54288264]
[1724815936396,0.42325273,2475.5,2473.2,4.54288264]
[1724815936397,0.20800118,2474.9,2473.2,4.54288264]
[1724815936598,2.41063729,2474.8,2473.6,2.16558264]
[1724815936805,2.3096,2474.6,2473.6,2.16558264]
[1724815937035,2.3096,2474.4,2473.6,2.16558264]
[1724815937339,2.55066383,2474.3,2473.6,2.16558264]
[1724815937538,2.3096,2474.3,2473.6,2.16558264]
[1724815946052,2.4969,2474.6,2473.7,2.3574]
[1724815946250,0.42334384,2474.7,2473.8,19.82719661]
[1724815946433,0.42334384,2474.7,2473.9,2.4957]
[1724815948345,0.42334384,2474.7,2474.0,19.82719661]
[1724815948659,0.42334384,2474.7,2474.1,2.3657]
[1724815948862,0.42334384,2474.7,2474.2,2.3657]
[1724815949022,0.42334384,2474.7,2474.3,0.47314]
[1724815952993,0.42334384,2474.7,2473.9,4.45958264]
[1724815953748,0.42334384,2474.7,2473.9,2.16558264]
[1724815959178,0.42334384,2474.7,2473.8,29.60900329]
[1724815962384,0.42334384,2474.7,2473.9,2.2526]
[1724815962591,0.42334384,2474.7,2474.0,3.18616033]
[1724815963895,2.73264384,2474.7,2474.0,3.18616033]
[1724815965162,2.73264384,2474.7,2474.0,2.77355672]
[1724815965798,0.42334384,2474.7,2474.0,2.77355672]
[1724815971471,0.32334384,2474.7,2474.0,2.77355672]
[1724815971777,2.3748,2474.9,2474.1,0.50261567]
[1724815975030,2.3748,2474.9,2473.8,29.60900329]
[1724815975238,2.4188,2474.7,2473.8,12.42]
[1724815975381,2.4188,2474.5,2473.8,12.42]
[1724815975581,2.2593,2474.3,2473.8,12.42]
[1724815979812,2.2593,2474.3,2473.5,2.4961]
[1724815980010,2.2593,2474.3,2473.6,7.37]
[1724815981806,1.6616348,2474.3,2473.6,7.37]
[1724815982539,0.42315924,2475.2,2473.8,2.3577]
[1724815982708,0.42315924,2475.2,2474.0,7.37]
[1724815984801,2.3653,2475.0,2474.0,7.37]
[1724815985120,2.46631549,2475.0,2474.0,7.37]
[1724815987098,2.3653,2474.8,2474.0,7.37]
[1724815987436,2.4817,2474.6,2474.0,7.37]
[1724815987638,2.5827302,2474.6,2473.7,7.37]
[1724815987933,2.4817,2474.4,2473.7,7.37]
[1724815988228,0.31327421,2474.3,2473.7,7.37]
[1724815988437,2.4817,2474.4,2473.7,7.37]
[1724815997654,2.4817,2474.4,2473.5,12.42]
[1724815997961,2.4817,2474.4,2473.5,2.4785]
[1724815999376,2.2736,2474.7,2473.5,2.4785]
[1724815999540,2.2736,2474.7,2473.7,2.2743]
[1724816002254,0.10101889,2475.5,2473.9,2.29]
[1724816002255,2.3233,2475.0,2473.9,2.29]
[1724816002569,12.28,2476.8,2473.9,2.29]
[1724816002570,0.42311483,2474.9,2474.1,2.29]
[1724816002934,0.42311483,2474.9,2474.2,1.40713514]
[1724816003127,0.42311483,2474.9,2474.1,2.29]
[1724816003363,2.3233,2475.3,2474.3,2.29]
[1724816003561,0.42308821,2475.4,2474.3,2.29]
[1724816004834,0.42308821,2475.4,2474.4,6.41333099]
[1724816005090,0.42308821,2475.4,2474.5,19.53500329]
[1724816005240,0.42308821,2475.4,2474.6,2.53534233]
[1724816005587,0.42308821,2475.4,2474.7,2.346]
[1724816005736,2.3547,2475.9,2474.9,2.346]
[1724816005937,0.42303885,2475.8,2474.9,26.90500329]
[1724816006176,0.42303885,2475.8,2475.0,2.69050033]
[1724816006378,0.42303885,2475.8,2475.1,2.3611]
[1724816008972,2.2925,2475.7,2475.1,2.3611]
[1724816009187,2.2925,2475.7,2475.0,2.69050033]
[1724816009351,2.2925,2475.7,2475.1,0.65885386]
[1724816013346,2.2925,2475.7,2474.9,7.37]
[1724816013752,2.39349022,2475.7,2474.9,7.37]
[1724816014343,2.2925,2475.7,2474.9,7.37]
[1724816017179,2.2925,2475.7,2475.0,2.2922]
[1724816019482,0.42303885,2475.8,2475.0,2.2922]
[1724816019695,0.42303885,2475.8,2475.1,0.96622]
[1724816023993,0.42303885,2475.8,2475.2,2.43]
[1724816024198,2.4178,2476.4,2475.3,2.98]
[1724816024350,0.39163582,2477.2,2475.5,2.4]
[1724816024549,0.39163582,2477.2,2475.9,9.77]
[1724816024550,0.42299884,2476.3,2475.9,9.77]
[1724816024784,2.3591,2476.6,2475.9,2.4]
[1724816024994,0.42300251,2476.5,2476.0,0.24]
[1724816032293,2.4086,2476.4,2475.7,2.2887]
[1724816033789,0.42300251,2476.5,2475.7,2.2887]
[1724816033994,2.1929,2478.1,2475.7,2.2887]
[1724816033995,2.4086,2477.2,2475.7,2.2887]
[1724816034292,0.42292165,2477.0,2476.0,2.2887]
[1724816036405,0.10090537,2477.6,2476.1,2.3399]
[1724816036571,0.42286848,2477.3,2476.2,0.23399]
[1724816040289,0.42286848,2477.3,2476.3,2.3399]
[1724816040696,0.42286848,2477.3,2475.7,3.4054]
[1724816040697,2.38571979,2477.2,2475.8,2.3399]
[1724816041977,2.2848,2477.0,2475.8,2.3399]
[1724816042302,2.2848,2476.8,2475.9,7.37]
[1724816042504,0.39452495,2476.7,2475.9,7.37]
[1724816042709,2.2957,2476.6,2475.9,7.37]
[1724816043310,2.2756,2476.9,2476.0,2.2797]
[1724816043490,0.10094269,2476.8,2476.0,2.2797]
[1724816043684,0.10094269,2476.8,2475.9,7.37]
[1724816043892,2.4366,2476.7,2475.9,7.37]
[1724816044086,0.10095462,2476.6,2475.9,7.37]
[1724816044286,2.4366,2476.7,2475.9,7.37]
[1724816048244,0.10094282,2476.6,2475.9,7.37]
[1724816051362,2.3772,2476.5,2475.9,7.37]
[1724816051664,0.24781428,2476.4,2475.9,7.37]
[1724816051824,0.67078532,2476.4,2475.9,7.37]
[1724816052337,0.42297104,2476.4,2475.9,7.37]
[1724816054282,0.42297104,2476.4,2475.5,26.84760329]
[1724816055368,0.5239277,2476.4,2475.5,26.84760329]
[1724816058787,2.4591,2476.3,2475.0,2.3254]
[1724816059077,2.8583852,2476.2,2474.8,9.6954]
[1724816059286,2.2968,2476.0,2474.8,9.6954]
[1724816059443,2.39778241,2476.0,2474.8,9.6954]
[1724816060283,2.2968,2476.0,2474.9,2.3443]
[1724816060607,2.2968,2476.0,2475.1,2.3443]
[1724816063007,2.2968,2476.0,2475.1,7.37]
[1724816064811,2.39777311,2476.0,2475.1,7.37]
[1724816065013,2.2968,2476.0,2475.1,7.37]
[1724816065315,2.3374,2475.8,2475.1,7.37]
[1724816067177,0.42303525,2475.7,2475.1,7.37]
[1724816071898,2.3631,2475.6,2475.1,7.37]
[1724816073236,0.42303525,2475.7,2475.1,7.37]
[1724816075732,0.52401991,2475.7,2475.1,7.37]
[1724816075928,2.3157,2475.6,2475.1,7.37]
[1724816077667,2.58957353,2475.6,2475.1,7.37]
[1724816079467,0.10099045,2475.5,2475.1,7.37]
[1724816079656,2.319,2475.4,2475.1,7.37]
[1724816080957,2.319,2475.4,2474.6,19.79]
[1724816081128,2.319,2475.4,2474.7,2.21477]
[1724816081340,2.319,2475.4,2474.6,7.37]
[1724816086080,0.4231,2475.3,2474.6,7.37]
[1724816086424,2.3696,2475.2,2474.6,7.37]
[1724816088221,2.3696,2475.2,2474.3,14.7345]
[1724816088429,2.3696,2475.2,2474.4,3.19235033]
[1724816092393,0.4231,2475.3,2474.5,2.3225]
[1724816094896,0.4231,2475.3,2474.7,2.3718]
[1724816100803,0.4231,2475.3,2474.8,1.40686465]
[1724816101011,0.4231,2475.3,2474.7,2.3718]
[1724816101297,0.4231,2475.3,2474.8,1.72797318]
[1724816101522,0.4231,2475.3,2474.8,0.32111925]
[1724816104070,0.4231,2475.3,2474.9,1.4068136]
[1724816104239,0.4231,2475.3,2474.8,0.32111925]
[1724816107127,0.4231,2475.3,2474.9,1.40683828]
[1724816107471,2.278,2476.0,2474.9,2.3789]
[1724816107631,2.278,2476.0,2475.1,2.3789]
[1724816107831,2.70107873,2476.0,2475.2,3.51664955]
[1724816108046,0.42307873,2476.0,2475.4,2.3789]
[1724816108362,2.278,2476.2,2475.4,2.3789]
[1724816109073,2.278,2476.2,2475.3,0.6734942]
[1724816109287,2.3789651,2476.2,2475.1,0.4054]
[1724816109452,2.3789651,2476.2,2475.0,7.37]
[1724816110266,2.278,2476.2,2475.1,2.3995]
[1724816110439,2.4782,2476.0,2475.2,0.97695]
[1724816111968,0.42304247,2476.3,2475.0,7.37]
[1724816111969,2.56937347,2475.9,2475.0,7.37]
[1724816113481,2.4684,2475.9,2475.0,7.37]
[1724816113775,2.4684,2475.9,2475.0,9.8003]
[1724816116559,2.4684,2475.9,2475.1,3.51674934]
[1724816116898,0.42304247,2476.3,2475.3,2.4406]
[1724816117109,0.42304247,2476.3,2475.4,3.51666765]
[1724816117271,0.42304247,2476.3,2475.5,1.40648154]
[1724816117481,0.42304247,2476.3,2475.3,10.64999248]
[1724816117778,0.42304247,2476.3,2475.4,2.7939235]
[1724816118004,0.42304247,2476.3,2475.4,1.38747254]
[1724816119808,2.82094247,2476.3,2475.4,1.38747254]
[1724816121202,0.42304247,2476.3,2475.5,2.4683]
[1724816121405,0.42304247,2476.3,2475.6,0.38557725]
[1724816122498,2.4536,2476.5,2475.6,0.38557725]
[1724816122661,2.4536,2476.5,2475.6,7.75557725]
[1724816123101,2.4536,2476.5,2475.7,2.2849]
[1724816124519,2.4536,2476.5,2475.6,7.75557725]
[1724816124688,2.4536,2476.5,2475.7,0.77555773]
[1724816129386,2.4536,2476.5,2475.8,2.3479]
[1724816130304,2.79586168,2476.7,2475.8,2.3479]
[1724816130491,0.42306168,2476.7,2476.0,2.2805]
[1724816131011,2.3728,2476.9,2476.0,2.2805]
[1724816132292,2.3728,2476.9,2476.0,9.6505]
[1724816135263,2.3728,2476.9,2476.0,7.37]
[1724816135406,2.3028,2476.7,2476.0,7.37]
[1724816136033,2.3441,2476.5,2476.0,7.37]
[1724816136200,0.42299685,2477.0,2476.0,7.37]
[1724816136201,2.3441,2476.9,2476.0,7.37]
[1724816136402,2.3441,2476.7,2476.0,7.37]
[1724816136636,2.3441,2476.5,2476.0,7.37]
[1724816138727,0.10095552,2476.6,2475.3,2.4561]
[1724816138728,0.10095558,2476.4,2475.5,7.37]
[1724816138901,2.2849,2476.6,2475.5,7.37]
[1724816139146,2.3074,2476.4,2475.5,7.37]
[1724816139367,2.3074,2476.2,2475.5,7.37]
[1724816139574,0.10096758,2476.1,2475.5,7.37]
[1724816139761,2.3074,2476.2,2475.5,7.37]
[1724816139936,2.53814,2476.2,2475.5,7.37]
[1724816140641,2.3074,2476.2,2475.5,9.7287]
[1724816146437,0.42305428,2476.1,2475.5,9.7287]
[1724816152811,0.42305428,2476.1,2475.6,2.4981]
[1724816152980,0.10094767,2476.8,2475.6,2.4981]
[1724816153302,0.4230108,2476.5,2475.8,2.4981]
[1724816153453,0.4230108,2476.5,2476.0,2.4377]
[1724816159398,2.4233,2477.4,2476.1,3.0192]
[1724816159732,0.42293911,2477.0,2476.4,2.4692]
[1724816159937,2.4233,2477.4,2476.4,3.45312]
[1724816160137,0.4229308,2477.0,2476.4,3.45312]
[1724816160309,2.4233,2477.4,2476.4,3.45312]
[1724816160643,0.42292953,2477.1,2476.4,3.45312]
[1724816160813,0.42292953,2477.1,2476.5,2.4383]
[1724816161144,0.42292953,2477.1,2476.6,0.342222]
[1724816161974,0.42292953,2477.1,2476.5,2.4383]
[1724816162515,2.49572778,2477.0,2476.3,7.37]
[1724816162739,2.49572778,2477.0,2475.6,1.25908872]
[1724816162740,2.49572778,2477.0,2476.0,2.2745]
[1724816162962,2.3948,2476.8,2476.0,2.2745]
[1724816163252,0.10095223,2476.7,2476.0,2.2745]
[1724816163663,2.3541,2476.6,2475.5,2.1095797]
[1724816163955,2.3541,2476.6,2475.1,7.37]
[1724816163956,2.3541,2476.4,2475.1,8.20939248]
[1724816164176,2.3541,2476.2,2475.2,2.35294541]
[1724816164462,2.3541,2476.2,2475.2,0.94634371]
[1724816166159,2.2787,2476.7,2475.3,1.40656075]
[1724816166322,2.2787,2476.7,2475.2,0.94634371]
[1724816166323,0.10095508,2476.6,2475.4,1.64177454]
[1724816166520,2.57166675,2476.7,2475.4,0.23529045]
[1724816166761,2.2787,2476.7,2475.6,2.2953]
[1724816167165,2.2787,2476.7,2475.8,2.2953]
[1724816175891,0.42298679,2476.6,2475.8,2.2953]
[1724816176180,0.42298679,2476.6,2475.9,0.96653]
[1724816178489,1.18938174,2476.7,2475.9,0.96653]
[1724816178693,1.18938174,2476.7,2476.0,1.40613339]
[1724816178898,1.18938174,2476.7,2475.9,0.96653]
[1724816179097,1.18938174,2476.7,2476.0,0.41012225]
[1724816180813,0.10095008,2477.9,2476.1,2.4337]
[1724816181111,0.10095008,2477.9,2476.3,2.4337]
[1724816181274,1.15,2477.6,2476.3,2.4337]
[1724816181474,2.3775,2477.4,2476.3,2.4337]
[1724816181696,0.10092702,2477.3,2476.4,0.98037]
[1724816184384,2.3233,2477.2,2476.4,0.98037]
[1724816186209,0.10092748,2477.1,2476.3,2.4337]
[1724816186406,2.269,2477.1,2476.2,7.37]
[1724816186610,2.59683951,2477.0,2476.2,8.35002]
[1724816186923,2.36993951,2477.0,2476.2,7.37]
[1724816188002,2.36993951,2477.0,2476.0,2.4302]
[1724816188203,0.23699395,2476.9,2476.0,2.4302]
[1724816188524,0.10094725,2476.8,2476.0,2.4302]
[1724816195203,2.269,2477.0,2476.0,2.4302]
[1724816197817,0.72467299,2477.0,2476.1,1.40609979]
[1724816198141,0.72467299,2477.0,2476.2,0.38362998]
[1724816200914,0.72467299,2477.0,2476.3,2.3371]
[1724816206216,2.75917961,2477.2,2476.3,2.3371]
[1724816207550,2.3362,2477.2,2476.3,2.3371]
[1724816208525,2.52562597,2477.5,2476.3,2.3371]
[1724816208831,2.52562597,2477.5,2476.5,2.3166]
[1724816216775,1.15,2477.6,2476.7,2.3567]
[1724816217088,2.4652,2478.0,2476.9,2.3567]
[1724816217431,2.4652,2477.8,2476.9,2.3567]
[1724816217630,0.1009103,2477.7,2476.9,2.3567]
[1724816218476,2.4652,2477.8,2476.9,2.3567]
[1724816218790,2.4652,2477.8,2477.0,0.23567]
[1724816219366,0.1009094,2477.7,2477.0,0.23567]
[1724816219980,2.3566,2478.3,2477.1,2.3496]
[1724816220280,0.10089978,2478.2,2477.1,2.3496]
[1724816220639,2.314,2478.1,2477.1,2.3496]
[1724816220981,2.314,2477.9,2477.1,2.3496]
[1724816221132,0.3323092,2477.8,2477.1,2.3496]
[1724816221459,0.1009092,2477.7,2477.1,2.3496]
[1724816223478,2.8776,2477.6,2476.8,2.477]
[1724816223636,2.3276,2477.4,2476.6,2.477]
[1724816223830,2.3276,2477.4,2476.3,2.477]
[1724816223831,0.10093874,2477.3,2476.3,2.477]
[1724816224077,0.37357652,2477.3,2476.3,3.4617]
[1724816224377,0.10093701,2477.2,2476.3,0.9847]
[1724816224560,4.68887731,2478.2,2476.4,2.4011]
[1724816224561,2.2827,2477.7,2476.4,2.4011]
[1724816224740,0.10092798,2478.1,2476.4,2.4011]
[1724816224741,2.2862,2478.0,2476.4,2.4011]
[1724816224936,0.10091032,2477.9,2476.8,2.3399]
[1724816234738,0.10090318,2478.0,2476.8,2.3399]
[1724816236033,0.42289449,2477.9,2476.8,2.3399]
[1724816236339,0.10090322,2477.8,2476.8,2.3399]
[1724816236502,0.10090322,2477.8,2476.9,0.97099]
[1724816236700,0.10090322,2477.8,2477.0,2.4809]
[1724816237645,0.52379775,2477.9,2477.0,2.4809]
[1724816237844,0.52379775,2477.9,2477.1,2.671589]
[1724816238720,0.42289449,2477.9,2477.1,2.671589]
[1724816248232,0.42289449,2477.9,2477.3,2.3847]
[1724816249373,0.42289449,2477.9,2477.4,1.69458517]
[1724816249530,7.44,2480.3,2477.4,1.69458517]
[1724816249531,2.316,2479.6,2478.0,1.69458517]
[1724816249728,2.316,2479.4,2478.1,2.4165]
[1724816249959,2.316,2479.2,2478.1,2.4165]
[1724816250268,0.3425601,2479.1,2478.1,2.4165]
[1724816252229,2.2788,2479.0,2477.6,2.3196]
[1724816252524,0.3425601,2479.1,2477.6,2.3196]
[1724816252525,2.2788,2478.8,2477.6,2.3196]
[1724816252726,0.10088146,2478.7,2477.6,2.76110152]
[1724816253639,2.284,2479.0,2477.6,2.76110152]
[1724816253844,0.32926197,2478.9,2477.8,2.3524]
[1724816255067,0.10086206,2479.2,2477.8,2.3524]
[1724816256571,2.3611,2479.1,2477.8,2.3524]
[1724816256755,2.3611,2478.9,2477.8,2.3524]
[1724816256953,0.95207451,2478.8,2477.8,2.3524]
[1724816257162,0.10087683,2478.7,2477.8,2.3524]
[1724816259044,2.396,2478.6,2477.8,2.3524]
[1724816259372,0.10087682,2478.5,2477.8,2.3524]
[1724816261231,2.396,2478.6,2477.8,2.3524]
[1724816261440,2.396,2478.6,2477.8,2.63179015]
[1724816261877,2.4968767,2478.6,2477.8,2.63179015]
[1724816263493,0.55,2478.5,2477.0,2.3152]
[1724816263649,2.36910816,2478.4,2477.0,2.3152]
[1724816263856,2.64143227,2478.3,2477.0,2.3152]
[1724816264084,0.20278819,2476.7,2476.2,7.37]
[1724816264380,2.4432,2477.3,2475.8,0.83816607]
[1724816264584,0.10094079,2477.2,2475.9,3.51549808]
[1724816264877,0.10094079,2477.2,2476.0,1.40619923]
[1724816265093,0.10094079,2477.2,2475.8,0.83816607]
[1724816265389,0.35535487,2477.2,2475.9,3.76550624]
[1724816265675,0.35535487,2477.2,2476.0,1.40616989]
[1724816265883,0.35535487,2477.2,2475.9,0.25008152]
[1724816266054,1.27975302,2477.3,2476.1,2.2797]
[1724816266253,0.10093443,2477.2,2476.2,0.66832872]
[1724816266500,0.10093443,2477.2,2476.3,0.08074754]
[1724816267053,0.10093443,2477.2,2476.1,2.2797]
[1724816268853,0.10093443,2477.2,2475.9,2.2589]
[1724816268854,0.65094095,2477.1,2475.9,2.2589]
[1724816269096,2.2566,2477.0,2475.9,2.2589]
[1724816269397,0.94171584,2476.9,2475.9,2.2589]
[1724816269604,0.10096174,2476.9,2476.1,2.345]
[1724816269898,0.10096174,2476.9,2476.2,0.08075765]
[1724816270389,2.4664,2476.8,2475.3,2.345]
[1724816270601,2.4664,2476.6,2475.7,2.345]
[1724816270768,2.4664,2476.6,2475.6,7.37]
[1724816270769,0.100967,2476.5,2475.6,7.37]
[1724816270954,0.3577037,2476.5,2475.6,7.37]
[1724816271157,0.3577037,2476.5,2475.6,7.36919219]
[1724816271780,0.3577037,2476.5,2475.7,0.08077356]
[1724816272296,0.3577037,2476.5,2475.8,2.4846]
[1724816272297,0.10096174,2476.5,2475.8,2.4846]
[1724816272499,0.10096174,2476.5,2475.9,0.08077076]
[1724816274159,0.10096174,2476.5,2475.8,2.4846]
[1724816274497,0.10096174,2476.5,2475.9,0.08076838]
[1724816274696,0.10096174,2476.5,2475.9,0.33730522]
[1724816274865,0.10096174,2476.5,2475.9,0.25653684]
[1724816276400,0.10096174,2476.5,2475.6,7.36919219]
[1724816276800,2.2769,2476.3,2475.6,7.36919219]
[1724816276968,0.1009728,2476.2,2475.6,7.36919219]
[1724816277172,0.1009728,2476.2,2475.6,0.08077816]
[1724816279601,2.3381,2477.0,2475.6,0.08077816]
[1724816279904,0.6509628,2476.9,2475.6,0.36008164]
[1724816280063,2.4523,2476.8,2475.6,0.36008164]
[1724816280269,0.65096284,2476.7,2475.6,0.36008164]
[1724816280465,0.31032628,2476.6,2475.6,0.36008164]
[1724816280658,0.31032628,2476.6,2475.6,0.27930348]
[1724816280659,2.4523,2476.4,2475.6,0.27930348]
[1724816280988,0.65097206,2476.3,2475.5,9.72259219]
[1724816281192,0.10097634,2476.2,2475.5,9.72259219]
[1724816282968,3.0413,2476.1,2474.7,2.3211]
[1724816283282,0.10098775,2476.0,2474.7,2.66164]
[1724816283867,0.10098775,2476.0,2475.5,3.0]
[1724816284064,0.44624929,2476.0,2475.5,3.0]
[1724816284269,1.97618086,2476.1,2475.5,3.0]
[1724816284517,0.02753688,2476.0,2475.5,3.0]
[1724816284802,0.02753688,2476.0,2475.5,2.9594534]
[1724816285807,0.42293743,2475.9,2475.5,2.9594534]
[1724816286002,0.02753688,2475.8,2475.5,2.9594534]
[1724816288167,0.42293743,2475.9,2475.6,2.4967]
[1724816288385,0.42293743,2475.9,2475.7,0.08077499]
[1724816290271,1.8461,2476.9,2475.7,2.3479]
[1724816290495,0.42289533,2476.1,2475.8,0.32363751]
[1724816290901,0.02753688,2476.8,2475.8,0.32363751]
[1724816291105,0.42289752,2476.1,2475.8,0.32363751]
[1724816291403,0.02753688,2476.7,2475.8,0.32363751]
[1724816291621,0.42289974,2476.1,2475.8,0.32363751]
[1724816291795,0.02753688,2476.7,2475.8,0.32363751]
[1724816291994,0.57753688,2476.7,2475.9,2.4302]
[1724816292205,0.42289591,2476.2,2475.9,2.4302]
[1724816292371,0.57753688,2476.7,2475.9,2.4302]
[1724816292573,0.42288057,2476.4,2475.9,2.4302]
[1724816292876,0.42288057,2476.4,2476.0,0.25109704]
[1724816294776,0.42288057,2476.4,2475.9,2.4302]
[1724816295375,0.02753688,2476.3,2475.9,2.4302]
[1724816295687,0.42288057,2476.4,2475.9,2.4302]
[1724816298316,0.42288057,2476.4,2476.1,2.4146]
[1724816298520,1.8461,2477.5,2476.2,2.49535297]
[1724816298820,0.42280633,2477.2,2476.5,2.4146]
[1724816299023,0.42280633,2477.2,2476.6,0.97837922]
[1724816299309,0.42280633,2477.2,2476.5,2.4146]
[1724816300494,0.02753688,2477.7,2476.6,2.43634406]
[1724816300808,0.57753688,2477.7,2476.8,2.3556]
[1724816301025,0.02753688,2477.7,2476.8,2.43634087]
[1724816301323,0.02753688,2477.9,2476.8,7.44993306]
[1724816301615,0.02753688,2478.2,2476.9,2.58559753]
[1724816301777,0.02753688,2478.2,2477.1,2.4497]
[1724816302116,0.02753688,2478.2,2477.2,0.33376957]
[1724816302486,0.57753688,2478.2,2477.2,0.33376957]
[1724816302692,0.57753688,2478.2,2477.1,2.4497]
[1724816303728,1.8461,2478.1,2476.9,2.4746]
[1724816304013,1.8461,2477.9,2476.9,2.4746]
[1724816304314,0.26990057,2477.8,2476.9,2.4746]
[1724816304611,0.57753688,2477.7,2476.9,2.4746]
[1724816304976,1.8461,2477.6,2476.3,2.4282]
[1724816305310,0.26990057,2477.5,2476.3,2.4282]
[1724816305502,0.55,2477.4,2476.3,2.4282]
[1724816305705,0.02753688,2477.3,2476.3,2.4282]
[1724816306831,1.8461,2477.2,2476.3,2.4282]
[1724816306982,0.57753688,2477.1,2476.3,2.4282]
[1724816307181,0.24236369,2477.0,2476.3,2.4282]
[1724816307509,0.02753688,2476.9,2476.3,2.4282]
[1724816308415,0.02753688,2477.0,2476.3,2.4282]
[1724816310575,0.42282102,2476.9,2476.3,2.4282]
[1724816312697,0.02753688,2476.8,2476.3,2.4282]
[1724816313740,0.42282102,2476.9,2476.3,2.4282]
[1724816314100,0.02753688,2476.8,2476.3,2.4282]
[1724816314302,0.02753688,2476.8,2475.9,2.3137]